[Event "Early-Titled-Tuesday-Blitz-January-30-2024"]
[Site "Chess.com"]
[Date "2024.01.30"]
[Round "10"]
[White "Slovineanu"]
[Black "Zavgorodniy_Sergiy"]
[Result "1/2-1/2"]
[WhiteElo "2451"]
[BlackElo "2606"]
[TimeControl "180+1"]
[EndTime "10:02:08 PST"]
[Termination "Game drawn by repetition"]

1. d4 {[%clk 0:02:58.3]} 1... d5 {[%clk 0:02:59.6]} 2. Nf3 {[%clk 0:02:57]} 2...
Nf6 {[%clk 0:02:59.4]} 3. c4 {[%clk 0:02:53.5]} 3... dxc4 {[%clk 0:03:00.3]} 4.
e3 {[%clk 0:02:53.4]} 4... e6 {[%clk 0:03:00.8]} 5. Bxc4 {[%clk 0:02:53.5]} 5...
a6 {[%clk 0:03:01.7]} 6. O-O {[%clk 0:02:51.8]} 6... b5 {[%clk 0:03:02.2]} 7.
Bd3 {[%clk 0:02:49]} 7... Bb7 {[%clk 0:03:03.1]} 8. a4 {[%clk 0:02:44.2]} 8...
b4 {[%clk 0:03:03.4]} 9. Re1 {[%clk 0:02:43.6]} 9... Nbd7 {[%clk 0:03:04.3]} 10.
e4 {[%clk 0:02:43.4]} 10... c5 {[%clk 0:03:04.1]} 11. Nbd2 {[%clk 0:02:41.1]}
11... cxd4 {[%clk 0:03:03.8]} 12. e5 {[%clk 0:02:41.3]} 12... Nd5 {[%clk
0:03:03.9]} 13. Nb3 {[%clk 0:02:39.5]} 13... Nc5 {[%clk 0:03:00.1]} 14. Bg5
{[%clk 0:02:27]} 14... Qd7 {[%clk 0:02:54.2]} 15. Rc1 {[%clk 0:02:14.6]} 15...
Nxd3 {[%clk 0:02:52.8]} 16. Qxd3 {[%clk 0:02:14.4]} 16... h6 {[%clk 0:02:52]}
17. Bh4 {[%clk 0:02:06.3]} 17... Qxa4 {[%clk 0:02:46.3]} 18. Nfxd4 {[%clk
0:01:48.7]} 18... Be7 {[%clk 0:02:44.6]} 19. Bxe7 {[%clk 0:01:46.5]} 19... Nxe7
{[%clk 0:02:45.5]} 20. Nc5 {[%clk 0:01:45.5]} 20... Qa2 {[%clk 0:02:21.7]} 21.
Nxb7 {[%clk 0:01:42.1]} 21... O-O {[%clk 0:02:21.9]} 22. b3 {[%clk 0:01:33.3]}
22... Nd5 {[%clk 0:02:08.9]} 23. Nd6 {[%clk 0:01:05.4]} 23... Qa5 {[%clk
0:01:39.5]} 24. Ra1 {[%clk 0:00:53.2]} 24... Qb6 {[%clk 0:01:37.1]} 25. g3
{[%clk 0:00:46.7]} 25... a5 {[%clk 0:01:34.7]} 26. Nc4 {[%clk 0:00:44.3]} 26...
Qc5 {[%clk 0:01:32]} 27. Nf3 {[%clk 0:00:39.3]} 27... Nc3 {[%clk 0:01:29.6]} 28.
Qd4 {[%clk 0:00:36.4]} 28... Qc6 {[%clk 0:01:27]} 29. Kg2 {[%clk 0:00:33.7]}
29... a4 {[%clk 0:01:26.9]} 30. bxa4 {[%clk 0:00:31]} 30... Rxa4 {[%clk
0:01:26.9]} 31. Rxa4 {[%clk 0:00:30.2]} 31... Qxa4 {[%clk 0:01:27.1]} 32. Nd6
{[%clk 0:00:27.2]} 32... Rb8 {[%clk 0:01:20.8]} 33. Rc1 {[%clk 0:00:20.4]} 33...
Ne2 {[%clk 0:01:17.5]} 34. Qa1 {[%clk 0:00:18.8]} 34... Qxa1 {[%clk 0:01:05.7]}
35. Rxa1 {[%clk 0:00:18.8]} 35... b3 {[%clk 0:01:06.6]} 36. Nd2 {[%clk
0:00:17.4]} 36... b2 {[%clk 0:01:02.4]} 37. Ra7 {[%clk 0:00:16.5]} 37... b1=Q
{[%clk 0:00:59.2]} 38. Nxb1 {[%clk 0:00:16.6]} 38... Rxb1 {[%clk 0:00:59.8]} 39.
Rxf7 {[%clk 0:00:15.7]} 39... Nd4 {[%clk 0:00:51.6]} 40. Re7 {[%clk 0:00:15.2]}
40... Re1 {[%clk 0:00:49.3]} 41. f4 {[%clk 0:00:14.9]} 41... Re2+ {[%clk
0:00:45.4]} 42. Kg1 {[%clk 0:00:13.8]} 42... Re1+ {[%clk 0:00:41.4]} 43. Kf2
{[%clk 0:00:13.8]} 43... Re2+ {[%clk 0:00:41.4]} 44. Kg1 {[%clk 0:00:14]} 44...
g5 {[%clk 0:00:35.5]} 45. h4 {[%clk 0:00:11]} 45... gxf4 {[%clk 0:00:30.4]} 46.
gxf4 {[%clk 0:00:11]} 46... Nf3+ {[%clk 0:00:28.2]} 47. Kf1 {[%clk 0:00:10.3]}
47... Rd2 {[%clk 0:00:28]} 48. h5 {[%clk 0:00:09.1]} 48... Nh2+ {[%clk
0:00:25.2]} 49. Kg1 {[%clk 0:00:09.4]} 49... Nf3+ {[%clk 0:00:25.1]} 50. Kf1
{[%clk 0:00:10]} 50... Kf8 {[%clk 0:00:22.2]} 51. Rxe6 {[%clk 0:00:09.5]} 51...
Nh2+ {[%clk 0:00:18.5]} 52. Kg1 {[%clk 0:00:10]} 52... Nf3+ {[%clk 0:00:18.6]}
53. Kf1 {[%clk 0:00:10.6]} 53... Nh2+ {[%clk 0:00:18.8]} 54. Kg1 {[%clk
0:00:11.2]} 54... Nf3+ {[%clk 0:00:19.1]} 55. Kf1 {[%clk 0:00:11.7]} 1/2-1/2

[Event "Early-Titled-Tuesday-Blitz-January-30-2024"]
[Site "Chess.com"]
[Date "2024.01.30"]
[Round "10"]
[White "esrosenberg"]
[Black "guillembaches"]
[Result "1/2-1/2"]
[WhiteElo "2418"]
[BlackElo "2542"]
[TimeControl "180+1"]
[EndTime "10:02:09 PST"]
[Termination "Game drawn - insufficient material"]

1. c4 {[%clk 0:03:00.9]} 1... Nf6 {[%clk 0:03:00.1]} 2. Nf3 {[%clk 0:03:01.2]}
2... e6 {[%clk 0:03:00.3]} 3. g3 {[%clk 0:03:01]} 3... d5 {[%clk 0:03:00.6]} 4.
Bg2 {[%clk 0:03:01.1]} 4... Bd6 {[%clk 0:02:58]} 5. d4 {[%clk 0:02:58.9]} 5...
h6 {[%clk 0:02:57.8]} 6. O-O {[%clk 0:02:58.5]} 6... O-O {[%clk 0:02:57.1]} 7.
Qc2 {[%clk 0:02:57.6]} 7... b6 {[%clk 0:02:54.9]} 8. Nbd2 {[%clk 0:02:54.3]}
8... Bb7 {[%clk 0:02:53.2]} 9. b3 {[%clk 0:02:48.7]} 9... Nbd7 {[%clk
0:02:51.3]} 10. Bb2 {[%clk 0:02:48.3]} 10... c5 {[%clk 0:02:48.8]} 11. Rad1
{[%clk 0:02:44.1]} 11... Rc8 {[%clk 0:02:40.9]} 12. Qb1 {[%clk 0:02:39.1]} 12...
Qe7 {[%clk 0:02:33.4]} 13. e3 {[%clk 0:02:33]} 13... cxd4 {[%clk 0:02:28.3]} 14.
Nxd4 {[%clk 0:02:31.1]} 14... a6 {[%clk 0:02:25.2]} 15. cxd5 {[%clk 0:02:24.9]}
15... Bxd5 {[%clk 0:02:18.7]} 16. Bxd5 {[%clk 0:02:20.3]} 16... Nxd5 {[%clk
0:02:17.3]} 17. Nc4 {[%clk 0:02:09.7]} 17... Bc5 {[%clk 0:02:06]} 18. Qe4 {[%clk
0:02:00.5]} 18... b5 {[%clk 0:01:54.1]} 19. Ne5 {[%clk 0:01:58]} 19... Nxe5
{[%clk 0:01:36.4]} 20. Qxe5 {[%clk 0:01:57.9]} 20... Qf6 {[%clk 0:01:32.5]} 21.
Ne2 {[%clk 0:01:31]} 21... Qxe5 {[%clk 0:01:27.7]} 22. Bxe5 {[%clk 0:01:31.9]}
22... Rfd8 {[%clk 0:01:25.1]} 23. Bd4 {[%clk 0:01:19.5]} 23... Bxd4 {[%clk
0:01:18.9]} 24. Rxd4 {[%clk 0:01:18.6]} 24... e5 {[%clk 0:01:12.5]} 25. Rd2
{[%clk 0:01:17.7]} 25... Nb4 {[%clk 0:01:05.8]} 26. Rfd1 {[%clk 0:01:15.8]}
26... Rxd2 {[%clk 0:01:00.5]} 27. Rxd2 {[%clk 0:01:16.7]} 27... Rc2 {[%clk
0:00:58.1]} 28. Rxc2 {[%clk 0:01:16.8]} 28... Nxc2 {[%clk 0:00:58.7]} 29. Kf1
{[%clk 0:01:08.1]} 29... Kf8 {[%clk 0:00:55.8]} 30. Nc3 {[%clk 0:01:06.7]} 30...
Ke7 {[%clk 0:00:53.7]} 31. Ke2 {[%clk 0:01:06.7]} 31... Ke6 {[%clk 0:00:49.4]}
32. a3 {[%clk 0:01:04.4]} 32... Nxa3 {[%clk 0:00:47.8]} 33. Kd3 {[%clk
0:01:03.2]} 33... f5 {[%clk 0:00:45.5]} 34. e4 {[%clk 0:01:02.8]} 34... g6
{[%clk 0:00:45]} 35. f3 {[%clk 0:01:02.4]} 35... h5 {[%clk 0:00:44.5]} 36. Nd5
{[%clk 0:01:02.6]} 36... a5 {[%clk 0:00:34.4]} 37. Kc3 {[%clk 0:00:53.4]} 37...
b4+ {[%clk 0:00:32.1]} 38. Kd3 {[%clk 0:00:52.9]} 38... Kd6 {[%clk 0:00:32.2]}
39. Ne3 {[%clk 0:00:42.5]} 39... fxe4+ {[%clk 0:00:29]} 40. Kxe4 {[%clk
0:00:42.6]} 40... Nb5 {[%clk 0:00:25.7]} 41. Nc4+ {[%clk 0:00:41]} 41... Kc5
{[%clk 0:00:26]} 42. Nxa5 {[%clk 0:00:37.8]} 42... Nd4 {[%clk 0:00:24.3]} 43.
Nc4 {[%clk 0:00:27.2]} 43... Nxb3 {[%clk 0:00:22.7]} 44. Nxe5 {[%clk 0:00:27.9]}
44... Nd2+ {[%clk 0:00:21]} 45. Kd3 {[%clk 0:00:27.3]} 45... Nf1 {[%clk
0:00:20.1]} 46. Nxg6 {[%clk 0:00:22.4]} 46... Nxh2 {[%clk 0:00:19.9]} 47. f4
{[%clk 0:00:23]} 47... Kd5 {[%clk 0:00:19.4]} 48. Ne5 {[%clk 0:00:18.2]} 48...
Nf1 {[%clk 0:00:18.3]} 49. g4 {[%clk 0:00:17.6]} 49... hxg4 {[%clk 0:00:18]} 50.
Nxg4 {[%clk 0:00:18.5]} 50... Ng3 {[%clk 0:00:18.1]} 51. Ne3+ {[%clk 0:00:18.2]}
51... Ke6 {[%clk 0:00:16.7]} 52. Kc4 {[%clk 0:00:17.3]} 52... Nf5 {[%clk
0:00:16.6]} 53. Nxf5 {[%clk 0:00:14.7]} 53... Kxf5 {[%clk 0:00:16.6]} 54. Kxb4
{[%clk 0:00:15.6]} 54... Kxf4 {[%clk 0:00:16.9]} 1/2-1/2

[Event "Early-Titled-Tuesday-Blitz-January-30-2024"]
[Site "Chess.com"]
[Date "2024.01.30"]
[Round "10"]
[White "GMWSO"]
[Black "BocharovD"]
[Result "0-1"]
[WhiteElo "3112"]
[BlackElo "2885"]
[TimeControl "180+1"]
[EndTime "10:02:14 PST"]
[Termination "BocharovD won on time"]

1. d4 {[%clk 0:03:00.9]} 1... Nf6 {[%clk 0:02:57.1]} 2. c4 {[%clk 0:03:00.3]}
2... e6 {[%clk 0:02:57.1]} 3. Nc3 {[%clk 0:03:00.7]} 3... Bb4 {[%clk 0:02:57.1]}
4. Bd2 {[%clk 0:03:00.3]} 4... O-O {[%clk 0:02:55.7]} 5. e3 {[%clk 0:03:00.3]}
5... b6 {[%clk 0:02:54.9]} 6. Nf3 {[%clk 0:02:57.9]} 6... d5 {[%clk 0:02:53.3]}
7. cxd5 {[%clk 0:02:56.1]} 7... exd5 {[%clk 0:02:52.9]} 8. Bd3 {[%clk
0:02:56.3]} 8... Ba6 {[%clk 0:02:52.1]} 9. Bxa6 {[%clk 0:02:53.6]} 9... Nxa6
{[%clk 0:02:51.4]} 10. Rc1 {[%clk 0:02:47.2]} 10... Re8 {[%clk 0:02:43]} 11. O-O
{[%clk 0:02:44.5]} 11... Bf8 {[%clk 0:02:42.5]} 12. Ne2 {[%clk 0:02:39.3]} 12...
c5 {[%clk 0:02:29.5]} 13. dxc5 {[%clk 0:02:40.2]} 13... bxc5 {[%clk 0:02:29.6]}
14. Bc3 {[%clk 0:02:31.1]} 14... Qd6 {[%clk 0:01:42.5]} 15. Bxf6 {[%clk
0:02:21.1]} 15... Qxf6 {[%clk 0:01:43]} 16. Qxd5 {[%clk 0:02:19.6]} 16... Qxb2
{[%clk 0:01:37.4]} 17. Qc4 {[%clk 0:02:04.9]} 17... Nb4 {[%clk 0:01:33.1]} 18.
Nc3 {[%clk 0:02:03]} 18... Rad8 {[%clk 0:01:18]} 19. Ng5 {[%clk 0:01:48.2]}
19... Re7 {[%clk 0:01:16.1]} 20. Rcd1 {[%clk 0:01:08.2]} 20... Rxd1 {[%clk
0:01:07.7]} 21. Rxd1 {[%clk 0:01:09.1]} 21... h6 {[%clk 0:01:07.9]} 22. Nf3
{[%clk 0:01:02.2]} 22... Qc2 {[%clk 0:01:03.3]} 23. a3 {[%clk 0:00:56.3]} 23...
Na2 {[%clk 0:00:56.9]} 24. Qxa2 {[%clk 0:00:53.1]} 24... Qxc3 {[%clk 0:00:57]}
25. h4 {[%clk 0:00:46.8]} 25... c4 {[%clk 0:00:53]} 26. Rd4 {[%clk 0:00:42.1]}
26... Rc7 {[%clk 0:00:49.8]} 27. Ne5 {[%clk 0:00:41.9]} 27... Qb3 {[%clk
0:00:48.1]} 28. Rd2 {[%clk 0:00:21.5]} 28... Qxa2 {[%clk 0:00:38.4]} 29. Rxa2
{[%clk 0:00:22.4]} 29... c3 {[%clk 0:00:38.6]} 30. Rc2 {[%clk 0:00:22.4]} 30...
Bxa3 {[%clk 0:00:38.1]} 31. Kf1 {[%clk 0:00:22.9]} 31... a5 {[%clk 0:00:38.3]}
32. Ke2 {[%clk 0:00:23.3]} 32... a4 {[%clk 0:00:38.8]} 33. Nd3 {[%clk
0:00:18.4]} 33... Be7 {[%clk 0:00:35.8]} 34. Nc1 {[%clk 0:00:18.4]} 34... Bxh4
{[%clk 0:00:25.1]} 35. f4 {[%clk 0:00:17.3]} 35... Be7 {[%clk 0:00:22.9]} 36.
Kd3 {[%clk 0:00:15.3]} 36... f5 {[%clk 0:00:21]} 37. Na2 {[%clk 0:00:13.5]}
37... a3 {[%clk 0:00:20.2]} 38. Rxc3 {[%clk 0:00:13.2]} 38... Rxc3+ {[%clk
0:00:19.9]} 39. Nxc3 {[%clk 0:00:12.5]} 39... Kf7 {[%clk 0:00:19.8]} 40. e4
{[%clk 0:00:12.7]} 40... fxe4+ {[%clk 0:00:19.7]} 41. Kxe4 {[%clk 0:00:13.6]}
41... Kg6 {[%clk 0:00:19.2]} 42. g4 {[%clk 0:00:13]} 42... Bf6 {[%clk 0:00:18]}
43. Na2 {[%clk 0:00:12.2]} 43... h5 {[%clk 0:00:17.9]} 44. gxh5+ {[%clk
0:00:10.7]} 44... Kxh5 {[%clk 0:00:18.8]} 45. Nb4 {[%clk 0:00:08.5]} 45... Kg4
{[%clk 0:00:18.1]} 46. Na2 {[%clk 0:00:06.1]} 46... g6 {[%clk 0:00:18.3]} 47.
Nb4 {[%clk 0:00:05.6]} 47... Be7 {[%clk 0:00:18.2]} 48. Na2 {[%clk 0:00:05.4]}
48... Bd6 {[%clk 0:00:18.7]} 49. Nc3 {[%clk 0:00:03.9]} 49... Bxf4 {[%clk
0:00:18.6]} 50. Kd3 {[%clk 0:00:04.5]} 50... Be5 {[%clk 0:00:18.4]} 51. Na2
{[%clk 0:00:04.5]} 51... Kf3 {[%clk 0:00:18.8]} 0-1

[Event "Early-Titled-Tuesday-Blitz-January-30-2024"]
[Site "Chess.com"]
[Date "2024.01.30"]
[Round "10"]
[White "ljuks68"]
[Black "Bilan_Danila"]
[Result "0-1"]
[WhiteElo "2432"]
[BlackElo "2608"]
[TimeControl "180+1"]
[EndTime "10:02:14 PST"]
[Termination "Bilan_Danila won on time"]

1. e4 {[%clk 0:02:49.4]} 1... c5 {[%clk 0:02:39]} 2. Nf3 {[%clk 0:02:47.2]} 2...
e6 {[%clk 0:02:39.2]} 3. d4 {[%clk 0:02:47.7]} 3... cxd4 {[%clk 0:02:40.1]} 4.
Nxd4 {[%clk 0:02:48.2]} 4... a6 {[%clk 0:02:40.8]} 5. Bd3 {[%clk 0:02:47.9]}
5... Bc5 {[%clk 0:02:40.3]} 6. Nb3 {[%clk 0:02:47.4]} 6... Be7 {[%clk
0:02:40.8]} 7. c4 {[%clk 0:02:40]} 7... d6 {[%clk 0:02:41.1]} 8. Nc3 {[%clk
0:02:39.9]} 8... Nf6 {[%clk 0:02:41.2]} 9. Qe2 {[%clk 0:02:39.3]} 9... Nbd7
{[%clk 0:02:41.9]} 10. f4 {[%clk 0:02:38.3]} 10... Qc7 {[%clk 0:02:42.3]} 11.
O-O {[%clk 0:02:38.5]} 11... b6 {[%clk 0:02:42.5]} 12. Bd2 {[%clk 0:02:38.2]}
12... Bb7 {[%clk 0:02:42.8]} 13. Rae1 {[%clk 0:02:38.1]} 13... O-O {[%clk
0:02:43.1]} 14. e5 {[%clk 0:02:36]} 14... Ne8 {[%clk 0:02:32.2]} 15. Kh1 {[%clk
0:02:31.5]} 15... g6 {[%clk 0:02:25.4]} 16. Be4 {[%clk 0:02:24.3]} 16... Bxe4
{[%clk 0:02:15]} 17. Qxe4 {[%clk 0:02:24.5]} 17... Rc8 {[%clk 0:02:15.1]} 18. f5
{[%clk 0:01:50.9]} 18... exf5 {[%clk 0:02:04.7]} 19. exd6 {[%clk 0:01:37.6]}
19... Bxd6 {[%clk 0:01:47.7]} 20. Qh4 {[%clk 0:01:36.3]} 20... Qxc4 {[%clk
0:01:41]} 21. Bf4 {[%clk 0:01:26.4]} 21... Bxf4 {[%clk 0:01:37.2]} 22. Rxf4
{[%clk 0:01:26]} 22... Qc6 {[%clk 0:01:31.2]} 23. Nd4 {[%clk 0:01:13.9]} 23...
Qf6 {[%clk 0:01:28.4]} 24. Qf2 {[%clk 0:01:08.2]} 24... Nc7 {[%clk 0:01:16.9]}
25. g4 {[%clk 0:00:55.9]} 25... Ne6 {[%clk 0:01:16.8]} 26. Nd5 {[%clk 0:00:32]}
26... Qg5 {[%clk 0:01:02.2]} 27. Rxe6 {[%clk 0:00:29.5]} 27... fxe6 {[%clk
0:00:53.5]} 28. Nxe6 {[%clk 0:00:29.6]} 28... Rc1+ {[%clk 0:00:29.8]} 29. Kg2
{[%clk 0:00:29.2]} 29... Qh6 {[%clk 0:00:28.4]} 30. Nxf8 {[%clk 0:00:18.6]}
30... Qxf8 {[%clk 0:00:22.8]} 31. gxf5 {[%clk 0:00:17.4]} 31... g5 {[%clk
0:00:19.6]} 32. Rd4 {[%clk 0:00:14.6]} 32... Qc5 {[%clk 0:00:12.6]} 33. f6
{[%clk 0:00:12.6]} 33... Rc2 {[%clk 0:00:11.8]} 34. Rd2 {[%clk 0:00:09.3]} 34...
Rxd2 {[%clk 0:00:07.8]} 35. Qxd2 {[%clk 0:00:08.9]} 35... Qc6 {[%clk 0:00:08.7]}
36. Qxg5+ {[%clk 0:00:08.8]} 36... Kf8 {[%clk 0:00:06.9]} 37. Kg3 {[%clk
0:00:07.9]} 37... Qd6+ {[%clk 0:00:06.2]} 38. Kh3 {[%clk 0:00:07.6]} 38... Qe6+
{[%clk 0:00:06.2]} 39. Kh4 {[%clk 0:00:07.6]} 39... Qf7 {[%clk 0:00:06.7]} 40.
Qf4 {[%clk 0:00:06.8]} 40... Qxd5 {[%clk 0:00:06]} 41. Qh6+ {[%clk 0:00:04.1]}
41... Ke8 {[%clk 0:00:05]} 42. Qxh7 {[%clk 0:00:03.6]} 42... Nxf6 {[%clk
0:00:05.1]} 43. Qg6+ {[%clk 0:00:02.7]} 43... Qf7 {[%clk 0:00:05.3]} 44. Qxf7+
{[%clk 0:00:02.1]} 44... Kxf7 {[%clk 0:00:06.2]} 45. Kg5 {[%clk 0:00:02.7]}
45... Nd5 {[%clk 0:00:05.6]} 46. Kf5 {[%clk 0:00:03]} 46... Ne3+ {[%clk
0:00:05.6]} 47. Ke4 {[%clk 0:00:02.7]} 47... Nd1 {[%clk 0:00:06.5]} 0-1

[Event "Early-Titled-Tuesday-Blitz-January-30-2024"]
[Site "Chess.com"]
[Date "2024.01.30"]
[Round "10"]
[White "NovozhilovSemen"]
[Black "mbojan"]
[Result "0-1"]
[WhiteElo "2664"]
[BlackElo "2863"]
[TimeControl "180+1"]
[EndTime "10:02:19 PST"]
[Termination "mbojan won by resignation"]

1. d4 {[%clk 0:03:00.9]} 1... Nf6 {[%clk 0:03:00.1]} 2. Nf3 {[%clk 0:03:00.9]}
2... g6 {[%clk 0:02:59.9]} 3. Nc3 {[%clk 0:03:01]} 3... Bg7 {[%clk 0:02:48.6]}
4. e4 {[%clk 0:02:57.9]} 4... d5 {[%clk 0:02:48.9]} 5. e5 {[%clk 0:02:57]} 5...
Ne4 {[%clk 0:02:49.4]} 6. Bd3 {[%clk 0:02:56.6]} 6... Nxc3 {[%clk 0:02:49.1]} 7.
bxc3 {[%clk 0:02:56.2]} 7... c5 {[%clk 0:02:50]} 8. Be3 {[%clk 0:02:53.6]} 8...
Qa5 {[%clk 0:02:49.7]} 9. Qd2 {[%clk 0:02:53.3]} 9... c4 {[%clk 0:02:48.5]} 10.
Be2 {[%clk 0:02:52.4]} 10... Qa4 {[%clk 0:02:49.1]} 11. O-O {[%clk 0:02:48.1]}
11... Bf5 {[%clk 0:02:46.5]} 12. Rfb1 {[%clk 0:02:46.9]} 12... b6 {[%clk
0:02:46.5]} 13. Ne1 {[%clk 0:02:46.8]} 13... Nc6 {[%clk 0:02:46]} 14. g4 {[%clk
0:02:40.2]} 14... Be6 {[%clk 0:02:42.9]} 15. f4 {[%clk 0:02:40.6]} 15... f5
{[%clk 0:02:41.4]} 16. exf6 {[%clk 0:02:34]} 16... exf6 {[%clk 0:02:36.3]} 17.
Bf3 {[%clk 0:02:33.9]} 17... Rd8 {[%clk 0:02:29.7]} 18. Ng2 {[%clk 0:02:31]}
18... f5 {[%clk 0:02:20.5]} 19. gxf5 {[%clk 0:02:16.9]} 19... Bxf5 {[%clk
0:02:18.3]} 20. Rc1 {[%clk 0:02:12.7]} 20... O-O {[%clk 0:02:18.3]} 21. Bf2
{[%clk 0:02:12]} 21... Bh6 {[%clk 0:02:10.6]} 22. Bg3 {[%clk 0:02:02.5]} 22...
Rfe8 {[%clk 0:02:04.4]} 23. Ne3 {[%clk 0:01:55.3]} 23... Be4 {[%clk 0:02:03.1]}
24. Qg2 {[%clk 0:01:48.3]} 24... Bxf3 {[%clk 0:01:26.4]} 25. Qxf3 {[%clk
0:01:49.2]} 25... Qa3 {[%clk 0:01:26.9]} 26. Nxd5 {[%clk 0:01:42.2]} 26... Nxd4
{[%clk 0:01:15.7]} 27. Nf6+ {[%clk 0:01:33.5]} 27... Kf7 {[%clk 0:01:15.6]} 28.
Qg4 {[%clk 0:01:03.8]} 28... Ne2+ {[%clk 0:01:12.7]} 29. Kg2 {[%clk 0:00:58.1]}
29... Kxf6 {[%clk 0:00:50]} 30. Bh4+ {[%clk 0:00:50.3]} 30... Kf7 {[%clk
0:00:46.5]} 31. Bxd8 {[%clk 0:00:51.2]} 31... Nxc1 {[%clk 0:00:23.5]} 32. Qd7+
{[%clk 0:00:47]} 32... Kf8 {[%clk 0:00:23.9]} 33. Bc7 {[%clk 0:00:39.1]} 33...
Re2+ {[%clk 0:00:11.1]} 34. Kf1 {[%clk 0:00:37.4]} 34... Qxc3 {[%clk 0:00:06.3]}
35. Bd6+ {[%clk 0:00:32.6]} 35... Kg8 {[%clk 0:00:06.9]} 36. Qc8+ {[%clk
0:00:18.5]} 36... Kf7 {[%clk 0:00:07.4]} 37. Qb7+ {[%clk 0:00:18.9]} 37... Kf6
{[%clk 0:00:08.1]} 38. Rxc1 {[%clk 0:00:17.3]} 38... Qd2 {[%clk 0:00:04.6]} 39.
Be5+ {[%clk 0:00:13.2]} 39... Kf5 {[%clk 0:00:03.4]} 40. Qc8+ {[%clk 0:00:12.3]}
40... Ke4 {[%clk 0:00:03.4]} 41. Qxc4+ {[%clk 0:00:11.5]} 41... Kf3 {[%clk
0:00:02.7]} 42. Qc6+ {[%clk 0:00:08.4]} 42... Kg4 {[%clk 0:00:02.3]} 43. Qc8+
{[%clk 0:00:07.3]} 43... Kh4 {[%clk 0:00:02.1]} 44. Bf6+ {[%clk 0:00:04.9]}
44... g5 {[%clk 0:00:02.7]} 45. Bxg5+ {[%clk 0:00:03.5]} 45... Bxg5 {[%clk
0:00:03.1]} 46. Ra1 {[%clk 0:00:03.9]} 46... Rf2+ {[%clk 0:00:03.5]} 47. Kg1
{[%clk 0:00:04.5]} 47... Rg2+ {[%clk 0:00:04.2]} 48. Kh1 {[%clk 0:00:05.1]}
48... Rxh2+ {[%clk 0:00:04.6]} 0-1

[Event "Early-Titled-Tuesday-Blitz-January-30-2024"]
[Site "Chess.com"]
[Date "2024.01.30"]
[Round "10"]
[White "FM_VS99"]
[Black "hasagoodchesser"]
[Result "0-1"]
[WhiteElo "2559"]
[BlackElo "2736"]
[TimeControl "180+1"]
[EndTime "10:02:20 PST"]
[Termination "hasagoodchesser won on time"]

1. Nf3 {[%clk 0:03:00.9]} 1... Nf6 {[%clk 0:02:59.4]} 2. g3 {[%clk 0:03:01]}
2... g6 {[%clk 0:02:57.1]} 3. Bg2 {[%clk 0:03:01.5]} 3... Bg7 {[%clk 0:02:57.8]}
4. O-O {[%clk 0:03:02.4]} 4... O-O {[%clk 0:02:58.5]} 5. d4 {[%clk 0:03:03]}
5... d5 {[%clk 0:02:55.9]} 6. c4 {[%clk 0:03:03.4]} 6... c6 {[%clk 0:02:56.4]}
7. cxd5 {[%clk 0:03:04]} 7... cxd5 {[%clk 0:02:55.5]} 8. Ne5 {[%clk 0:03:03.4]}
8... Nfd7 {[%clk 0:02:35.2]} 9. Nc3 {[%clk 0:02:58.9]} 9... Nxe5 {[%clk
0:02:29.7]} 10. dxe5 {[%clk 0:02:59.8]} 10... d4 {[%clk 0:02:25.6]} 11. Nd5
{[%clk 0:02:10.9]} 11... Bxe5 {[%clk 0:02:23.9]} 12. Bf4 {[%clk 0:02:05.8]}
12... Bxf4 {[%clk 0:02:17.4]} 13. Nxf4 {[%clk 0:02:03.9]} 13... e5 {[%clk
0:02:11.4]} 14. Nd3 {[%clk 0:01:59.7]} 14... Re8 {[%clk 0:02:07.4]} 15. Rc1
{[%clk 0:01:57.8]} 15... Nc6 {[%clk 0:02:00.3]} 16. Qb3 {[%clk 0:01:38.1]} 16...
Qe7 {[%clk 0:01:46.5]} 17. Nc5 {[%clk 0:01:28.9]} 17... Rd8 {[%clk 0:01:07.7]}
18. h4 {[%clk 0:01:22.9]} 18... Kg7 {[%clk 0:01:05.8]} 19. h5 {[%clk 0:01:18.1]}
19... Rd6 {[%clk 0:00:58.4]} 20. Rfe1 {[%clk 0:01:11.7]} 20... Nd8 {[%clk
0:00:52.4]} 21. Qf3 {[%clk 0:00:57.8]} 21... Rf6 {[%clk 0:00:33.1]} 22. Qe4
{[%clk 0:00:27.8]} 22... Rb6 {[%clk 0:00:28.2]} 23. b3 {[%clk 0:00:25.8]} 23...
Bf5 {[%clk 0:00:27.9]} 24. Qf3 {[%clk 0:00:20.7]} 24... Rc8 {[%clk 0:00:27.7]}
25. g4 {[%clk 0:00:17.8]} 25... Bxg4 {[%clk 0:00:15.8]} 26. Qxg4 {[%clk
0:00:15]} 26... Rxc5 {[%clk 0:00:16.5]} 27. Rxc5 {[%clk 0:00:15.2]} 27... Qxc5
{[%clk 0:00:17.4]} 28. h6+ {[%clk 0:00:15]} 28... Kf8 {[%clk 0:00:17.2]} 29. Qg5
{[%clk 0:00:06.2]} 29... Qe7 {[%clk 0:00:15.8]} 30. Qd2 {[%clk 0:00:06.3]} 30...
Qb4 {[%clk 0:00:15.2]} 31. Qd1 {[%clk 0:00:05]} 31... Ne6 {[%clk 0:00:15.5]} 32.
e3 {[%clk 0:00:05.6]} 32... Rd6 {[%clk 0:00:14.3]} 33. exd4 {[%clk 0:00:05.8]}
33... Rxd4 {[%clk 0:00:15.2]} 34. Qe2 {[%clk 0:00:05.9]} 34... f6 {[%clk
0:00:14.4]} 35. Rc1 {[%clk 0:00:05.2]} 35... Ke7 {[%clk 0:00:14.3]} 36. Qf3
{[%clk 0:00:04.7]} 36... Rd7 {[%clk 0:00:13.3]} 37. Bh3 {[%clk 0:00:04.8]} 37...
Qd2 {[%clk 0:00:09.6]} 38. Rc8 {[%clk 0:00:03.7]} 38... Qg5+ {[%clk 0:00:09.3]}
39. Kf1 {[%clk 0:00:03.6]} 39... Qxh6 {[%clk 0:00:07.6]} 40. Bxe6 {[%clk
0:00:04.2]} 40... Kxe6 {[%clk 0:00:07.3]} 41. Re8+ {[%clk 0:00:03]} 41... Kf7
{[%clk 0:00:07]} 42. Rc8 {[%clk 0:00:03.2]} 42... Qf4 {[%clk 0:00:06.4]} 43. Qh3
{[%clk 0:00:03.1]} 43... Rd1+ {[%clk 0:00:05]} 44. Ke2 {[%clk 0:00:03.5]} 44...
Qd2+ {[%clk 0:00:04.8]} 45. Kf3 {[%clk 0:00:03.7]} 45... Qd3+ {[%clk 0:00:05.6]}
46. Kg2 {[%clk 0:00:04]} 46... Qxh3+ {[%clk 0:00:06.5]} 47. Kxh3 {[%clk
0:00:04.9]} 47... Rd7 {[%clk 0:00:07.1]} 0-1